{"text_format":"1","workbook":"xlsx","n_sheets":4,"sheets":["Rapot","Leger","Guru Bidang Studi","Daftar Exkul"],"not_rendered":{"charts":0,"images":2,"macros":1,"external_links":1,"defined_names":2,"comments":0,"pivot_tables":0},"unopened":[],"bounds":{"document_bytes":16777216,"sheet_cells":100000,"rows_first":2000,"rows_last":500,"rows_between":2000,"halvings":0,"cell_chars":16384,"cell_head_chars":4096},"cells_cut":0,"cells_raw":0,"read":"whole","date_system":"1900"}

{"sheet":"Rapot","index":0,"n_rows":68,"n_cols":10,"rows_kept":68,"cut":false,"hidden":false,"merged":[[37,8,38,8],[40,0,41,0],[41,1,41,2],[40,4,41,4],[40,5,41,5],[40,6,41,7],[40,8,41,8],[40,3,41,3],[35,0,36,0],[37,0,38,0],[35,6,36,7],[37,6,38,7],[35,5,36,5],[35,4,36,4],[37,4,38,4],[37,5,38,5],[39,1,39,2],[39,6,39,7],[40,1,40,2],[18,8,19,8],[20,8,21,8],[22,8,23,8],[24,8,25,8],[26,8,27,8],[28,8,29,8],[30,8,31,8],[32,8,33,8],[35,8,36,8],[28,0,29,0],[30,0,31,0],[32,0,33,0],[22,3,23,3],[24,3,25,3],[26,3,27,3],[28,3,29,3],[30,3,31,3],[32,3,33,3],[32,1,32,2],[18,0,19,0],[20,0,21,0],[22,0,23,0],[24,0,25,0],[26,0,27,0],[19,1,19,2],[21,1,21,2],[23,1,23,2],[25,1,25,2],[27,1,27,2],[22,1,22,2],[24,1,24,2],[15,0,16,0],[15,3,16,3],[15,4,16,4],[15,5,16,5],[15,6,16,7],[11,8,12,8],[11,0,12,0],[13,6,14,7],[13,4,14,4],[13,0,14,0],[13,3,14,3],[13,5,14,5],[13,8,14,8],[15,8,16,8],[0,0,0,8],[6,0,7,0],[6,1,7,2],[6,3,7,3],[6,4,7,4],[6,5,6,7],[8,1,8,2],[8,6,8,7],[9,1,9,2],[6,8,7,8],[7,6,7,7],[9,5,10,5],[9,6,10,7],[9,8,10,8],[10,1,10,2],[9,4,10,4],[9,3,10,3],[5,4,5,6],[17,1,17,2],[17,6,17,7],[18,1,18,2],[11,1,11,2],[13,1,13,2],[15,1,15,2],[11,5,12,5],[11,6,12,7],[20,1,20,2],[12,1,12,2],[14,1,14,2],[16,1,16,2],[11,3,12,3],[11,4,12,4],[18,3,19,3],[20,3,21,3],[18,4,19,4],[20,4,21,4],[18,5,19,5],[20,5,21,5],[18,6,19,7],[20,6,21,7],[22,4,23,4],[24,4,25,4],[22,5,23,5],[24,5,25,5],[22,6,23,7],[24,6,25,7],[26,1,26,2],[28,1,28,2],[30,1,30,2],[26,4,27,4],[28,4,29,4],[30,4,31,4],[29,1,29,2],[31,1,31,2],[26,5,27,5],[28,5,29,5],[30,5,31,5],[26,6,27,7],[28,6,29,7],[30,6,31,7],[34,1,34,2],[34,6,34,7],[32,4,33,4],[33,1,33,2],[32,5,33,5],[42,0,42,2],[42,3,42,4],[42,6,42,7],[32,6,33,7],[67,3,67,5],[57,0,57,1],[57,7,57,8],[62,0,62,1],[62,3,62,5],[62,7,62,8],[43,0,43,2],[43,3,43,4],[43,6,43,7],[44,0,44,2],[44,3,44,4],[44,6,44,7],[48,4,48,8],[63,3,63,5],[46,5,46,6],[47,5,47,6]]}
["KARTU HASIL STUDI (KHS)",null,null,null,null,null,null,null,null,1]
[]
["Nama Siswa",null,":",{"$f":"VLOOKUP($J$1,Leger!$A$5:$S$45,3)","v":"Abdul Rahman"},"Kompetensi Keahlian ",null,null,": Multimedia"]
["Nomor Induk",null,": ",{"$f":"VLOOKUP($J$1,Leger!$A$5:$R$51,2)","v":"0628"},"Tingkat                       ",null,null,": XII (Dua Belas)"]
["Bidang Studi Keahlian",null,": ","Teknologi Informatika dan Komputer","Semester                  ",null,null,": 5 (Ganjil)"]
["Program Studi Keahlian",null,": ","Teknik Komputer dan Informasi","Tahun Pelajaran          ",null,null,": 2017/2018"]
["No","Mata Pelajaran",null,"Standar Kompetensi","KKM","Nilai",null,null,"Predikat"]
[null,null,null,null,null,"Angka","Huruf"]
["I","NORMATIF"]
[1,"Pendidikan Agama",null,null,75,{"$f":"ROUNDUP(VLOOKUP($J$1,Leger!$A$5:$R$51,4),0)","v":80},{"$f":"VLOOKUP(F10,tabel,2)","v":"Delapan Puluh"},null,{"$f":"IF(F10>E10,\"Terlampaui\",IF(F10=E10,\"Tercapai\",\"Belum Tercapai\"))","v":"Terlampaui"}]
[null,{"$f":"\"Guru : \"&VLOOKUP(B10,'Guru Bidang Studi'!$B$4:$C$20,2,0)","v":"Guru : Muhammad Faisal, S.Pd"}]
[2,"Pendidikan kewarganegaraan",null,"Menampilkan sikap positif terhadap Pancasila sebagai idiologi terbuka. Mengevaluasi berbagai sistem pemerintahan.",75,{"$f":"ROUND(VLOOKUP($J$1,Leger!$A$5:$R$51,5),0)","v":74},"Tujuh Puluh Empat",null,"Belum Tercapai"]
[null,{"$f":"\"Guru : \"&VLOOKUP(B12,'Guru Bidang Studi'!$B$4:$C$20,2,0)","v":"Guru : Mini Waryati, S.Pd"}]
[3,"Bahasa dan Sastra Indonesia",null,null,75,{"$f":"ROUNDUP(VLOOKUP($J$1,Leger!$A$5:$R$51,6),0)","v":0},"Kosong",null,"Belum Tercapai"]
[null,{"$f":"\"Guru : \"&VLOOKUP(B14,'Guru Bidang Studi'!$B$4:$C$20,2,0)","v":"Guru : Susjayati, S.Pd"}]
[4,"Penjasorkes",null,null,75,{"$f":"ROUNDUP(VLOOKUP($J$1,Leger!$A$5:$R$51,7),0)","v":0},"Kosong",null,"Belum Tercapai"]
[null,{"$f":"\"Guru : \"&VLOOKUP(B16,'Guru Bidang Studi'!$B$4:$C$20,2,0)","v":"Guru : Sujadi, S.Pd"}]
["II","ADAPTIF"]
[1,"Matematika",null,null,75,{"$f":"ROUNDUP(VLOOKUP($J$1,Leger!$A$5:$R$51,9),0)","v":0},{"$f":"VLOOKUP(F19,tabel,2)","v":"Kosong"},null,"Belum Tercapai"]
[null,{"$f":"\"Guru : \"&VLOOKUP(B19,'Guru Bidang Studi'!$B$4:$C$20,2,0)","v":"Guru : Dra. Ikeu Ganis Milik"}]
[2,"Bahasa Inggris",null,null,75,{"$f":"ROUNDUP(VLOOKUP($J$1,Leger!$A$5:$R$51,10),0)","v":0},"Kosong",null,"Belum Tercapai"]
[null,{"$f":"\"Guru : \"&VLOOKUP(B21,'Guru Bidang Studi'!$B$4:$C$20,2,0)","v":"Guru : Ihdina Furnama, M.Pd"}]
[3,"Ilmu Pengetahuan Alam",null,null,75,{"$f":"ROUNDUP(VLOOKUP($J$1,Leger!$A$5:$R$51,11),0)","v":0},"Kosong",null,"Belum Tercapai"]
[null,{"$f":"\"Guru : \"&VLOOKUP(B23,'Guru Bidang Studi'!$B$4:$C$20,2,0)","v":"Guru : Teuku Abdul Hafidz, S.Pd"}]
[4,"Kimia",null,null,75,{"$f":"ROUNDUP(VLOOKUP($J$1,Leger!$A$5:$R$51,12),0)","v":0},"Kosong",null,"Belum Tercapai"]
[null,{"$f":"\"Guru : \"&VLOOKUP(B25,'Guru Bidang Studi'!$B$4:$C$20,2,0)","v":"Guru : Yahdiana, S.Si"}]
[5,"Fisika",null,null,75,{"$f":"ROUNDUP(VLOOKUP($J$1,Leger!$A$5:$R$51,13),0)","v":0},"Kosong",null,"Belum Tercapai"]
[null,{"$f":"\"Guru : \"&VLOOKUP(B27,'Guru Bidang Studi'!$B$4:$C$20,2,0)","v":"Guru : Joko Wahyu Utomo, S.Si"}]
[6,"Ilmu Pengetahuan Sosial",null,"Menganalisis kelompok sosial dalam masyarakat multikultural",75,{"$f":"ROUNDUP(VLOOKUP($J$1,Leger!$A$5:$R$51,14),0)","v":0},"Kosong",null,"Belum Tercapai"]
[null,{"$f":"\"Guru : \"&VLOOKUP(B29,'Guru Bidang Studi'!$B$4:$C$20,2,0)","v":"Guru : Muhammad Adam Fasya, S.Pd"}]
[7,"KKPI",null,"Mengoperasikan PC dalam Jaringan",75,{"$f":"ROUNDUP(VLOOKUP($J$1,Leger!$A$5:$R$51,15),0)","v":0},"Kosong",null,"Belum Tercapai"]
[null,{"$f":"\"Guru : \"&VLOOKUP(B31,'Guru Bidang Studi'!$B$4:$C$20,2,0)","v":"Guru : Eko Rudi Haryanto, S.Kom"}]
[8,"Kewirausahaan",null,null,75,{"$f":"ROUNDUP(VLOOKUP($J$1,Leger!$A$5:$R$51,16),0)","v":0},"Kosong",null,"Belum Tercapai"]
[null,{"$f":"\"Guru : \"&VLOOKUP(B33,'Guru Bidang Studi'!$B$4:$C$20,2,0)","v":"Guru : Bachtiar Sugianto, S.Pd"}]
["III","PRODUKTIF"]
[1,"Menguasai dasar animasi op-motion (bidang datar)",null,null,75,{"$f":"ROUNDUP(VLOOKUP($J$1,Leger!$A$5:$R$51,17),0)","v":0},{"$f":"VLOOKUP(F36,tabel,2)","v":"Kosong"},null,{"$f":"IF(F36>=E36,\"Kompeten\",\"Belum Kompeten\")","v":"Belum Kompeten"}]
[null,{"$f":"\"Guru : \"&VLOOKUP(B36,'Guru Bidang Studi'!$B$4:$C$20,2,0)","v":"Guru : Denny Muharjo"}]
[2,"Membuat story board aplikasi multimedia",null,null,75,{"$f":"ROUNDUP(VLOOKUP($J$1,Leger!$A$5:$R$51,17),0)","v":0},{"$f":"VLOOKUP(F38,tabel,2)","v":"Kosong"},null,{"$f":"IF(F38>=E38,\"Kompeten\",\"Belum Kompeten\")","v":"Belum Kompeten"}]
[null,{"$f":"\"Guru : \"&VLOOKUP(B38,'Guru Bidang Studi'!$B$4:$C$20,2,0)","v":"Guru : Denny Muharjo"}]
["IV","MULOK"]
[1,"Broadcasting",null,null,75,{"$f":"ROUNDUP(VLOOKUP($J$1,Leger!$A$6:$AF$50,18),0)","v":0},{"$f":"VLOOKUP(F41,tabel,2)","v":"Kosong"},null,{"$f":"IF(F41>=E41,\"Kompeten\",\"Belum Kompeten\")","v":"Belum Kompeten"}]
[null,{"$f":"\"Guru : \"&VLOOKUP(B41,'Guru Bidang Studi'!$B$4:$C$20,2,0)","v":"Guru : Cahyo Prasojo, S.Sn"}]
[null,null,null,"Jumlah",null,{"$f":"VLOOKUP($J$1,Leger!$A$6:$AF$50,19)","v":154.30000000000001}]
[null,null,null,"Rata-rata",null,{"$f":"ROUNDUP(VLOOKUP($J$1,Leger!$A$6:$AF$50,20),1)","v":77.199999999999989}]
[null,null,null,"Peringkat kelas",null,{"$f":"VLOOKUP($J$1,Leger!$A$5:$AF$50,21)","v":1}]
["Ekstrakurikuler"]
["1. ",{"$f":"VLOOKUP($D$3,'Daftar Exkul'!$B$3:$F$28,2)","v":0},null,{"$f":"VLOOKUP($J$1,Leger!$A$5:$AF$50,28)","v":0},"3.",{"$f":"VLOOKUP($D$3,'Daftar Exkul'!$B$3:$F$28,4)","v":0},null,null,{"$f":"VLOOKUP($J$1,Leger!$A$5:$AF$50,30)","v":0}]
["2. ",{"$f":"VLOOKUP($D$3,'Daftar Exkul'!$B$3:$F$28,3)","v":0},null,{"$f":"VLOOKUP($J$1,Leger!$A$5:$AF$50,29)","v":0},"4.",{"$f":"VLOOKUP($D$3,'Daftar Exkul'!$B$3:$F$28,5)","v":0},null,null,{"$f":"VLOOKUP($J$1,Leger!$A$5:$AF$50,31)","v":0}]
[" Kepribadian",null,null,null," Ketidakhadiran"]
[" 1. Kelakuan   ",null,":",{"$f":"VLOOKUP($J$1,Leger!$A$5:$AF$50,25)","v":0}," 1. Sakit",":",{"$f":"VLOOKUP($J$1,Leger!$A$5:$AF$50,22)","v":0},"Hari"]
[" 2. Kerajinan / disiplin",null,":",{"$f":"VLOOKUP($J$1,Leger!$A$5:$AF$50,26)","v":"Baik"}," 2. Izin ",":",{"$f":"VLOOKUP($J$1,Leger!$A$5:$AF$50,23)","v":0},"Hari"]
[" 3. Kerapihan    ",null,":",{"$f":"VLOOKUP($J$1,Leger!$A$5:$AF$50,27)","v":0}," 3. Tanpa keterangan : ",null,{"$f":"VLOOKUP($J$1,Leger!$A$5:$AF$50,24)","v":0},"Hari"]
[" Catatan : Untuk diperhatikan orang tua / wali"]
[null,{"$f":"VLOOKUP($J$1,Leger!$A$5:$AF$50,32)","v":"Terus Tingkatkan Prestasi dan giat belajar"}]
[]
[null,null,null,null,null,null,null,"Diberikan di ",": Jakarta"]
[null,null,null,null,null,null,null,"Pada Tanggal",": 22 Desember 2017"]
["Orang Tua / Wali",null,null,null,null,null,null,"Wali Kelas"]
[]
[]
[]
[]
["                                          ",null,null,null,null,null,null,"SUSJAYATI, S.Pd"]
[null,null,null,"         Kepala Sekolah"]
[]
[]
[]
[null,null,null,"            MINI WARYANTI, S.Pd"]

{"sheet":"Leger","index":1,"n_rows":51,"n_cols":32,"rows_kept":51,"cut":false,"hidden":false,"merged":[]}
[1,2,3,4,5,6,7,8,9,10,11,12,13,14,15,16,17,18,19,20,21,22,23,24,25,26,27,28,29,30,31,32]
[]
["Ledger XII Multimedia Semester Ganjil"]
["SMK Bakti 17 TP. 2017-2018"]
["No.","NIS","Nama Siswa","PAI","PKN","B.Ind","Penjasorkes","SenBud","MTK","B.Ing","IPA","Kimia","Fisika","IPS","KKPI","KWU","MM","BC","jml nilai","nilai rata2","ranking","S","I","A","K1","K2","K3","Ekskul 1","Ekskul 2","Ekskul 3","Ekskul 4","Catatan Orang Tua"]
[1,"0628","Abdul Rahman",80,74.3,null,null,null,null,null,null,null,null,null,null,null,null,null,{"$f":"SUM(D6:R6)","v":154.30000000000001},{"$f":"AVERAGE(D6:R6)","v":77.150000000000006},{"$f":"RANK(S6,$S$6:$S$50,0)","v":1},null,null,null,null,{"$f":"IF(X6<1,\"Baik\",IF(X6<3,\"Cukup\",\"Kurang\"))","v":"Baik"},null,null,null,null,null,"Terus Tingkatkan Prestasi dan giat belajar"]
[2,"0846","Ade Saputra",null,null,null,null,null,null,null,null,null,null,null,null,null,null,null,{"$f":"SUM(D7:R7)","v":0},{"$f":"AVERAGE(D7:R7)","v":{"$error":"#DIV/0!"}},{"$f":"RANK(S7,$S$6:$S$50,0)","v":3},null,null,null,null,{"$f":"IF(X7<1,\"Baik\",IF(X7<3,\"Cukup\",\"Kurang\"))","v":"Baik"}]
[3,"0857","Aldi Gipran Ardian",null,null,null,null,null,null,null,null,null,null,null,null,null,null,null,0,{"$error":"#DIV/0!"},3,null,null,null,null,"Baik"]
[4,"0858","Aldi Sentanu",null,null,null,null,null,null,null,null,null,null,null,null,null,null,null,0,{"$error":"#DIV/0!"},3,null,null,null,null,"Baik"]
[5,"0859","Alvin Ramadhan",null,null,null,null,null,null,null,null,null,null,null,null,null,null,null,0,{"$error":"#DIV/0!"},3,null,null,null,null,"Baik"]
[6,"0868","Ayu Lestari",null,null,null,null,null,null,null,null,null,null,null,null,null,null,null,0,{"$error":"#DIV/0!"},3,null,null,null,null,"Baik"]
[7,"0876","Dian Fadilah Rahmadani",null,null,null,null,null,null,null,null,null,null,null,null,null,null,null,0,{"$error":"#DIV/0!"},3,null,null,null,null,"Baik"]
[8,"0881","Elda Aurelia",null,null,null,null,null,null,null,null,null,null,null,null,null,null,null,0,{"$error":"#DIV/0!"},3,null,null,null,null,"Baik"]
[9,"0886","Farhan Akbar Eka Putra",null,null,null,null,null,null,null,null,null,null,null,null,null,null,null,0,{"$error":"#DIV/0!"},3,null,null,null,null,"Baik"]
[10,"0889","Fikri Ramadhan",null,null,null,null,null,null,null,null,null,null,null,null,null,null,null,0,{"$error":"#DIV/0!"},3,null,null,null,null,"Baik"]
[11,"0909","Januar Ginting Ramadhan",null,null,null,null,null,null,null,null,null,null,null,null,null,null,null,0,{"$error":"#DIV/0!"},3,null,null,null,null,"Baik"]
[12,"0910","Jihan Syafira Andriyani",null,null,null,null,null,null,null,null,null,null,null,null,null,null,null,0,{"$error":"#DIV/0!"},3,null,null,null,null,"Baik"]
[13,"0912","Kautsar Alfaridzi",null,null,null,null,null,null,null,null,null,null,null,null,null,null,null,0,{"$error":"#DIV/0!"},3,null,null,null,null,"Baik"]
[14,"0913","Kennedy Hanifan",null,null,null,null,null,null,null,null,null,null,null,null,null,null,null,0,{"$error":"#DIV/0!"},3,null,null,null,null,"Baik"]
[15,"0915","Latifia Zahra",null,null,null,null,null,null,null,null,null,null,null,null,null,null,null,0,{"$error":"#DIV/0!"},3,null,null,null,null,"Baik"]
[16,"0926","Mohammad Rizki Febriansyah",null,null,null,null,null,null,null,null,null,null,null,null,null,null,null,0,{"$error":"#DIV/0!"},3,null,null,null,null,"Baik"]
[17,"0935","Muhammad Afrizal",null,null,65,null,null,null,null,null,null,null,null,null,null,null,null,65,65,2,null,null,null,null,"Baik"]
[18,"0939","Muhammad Faisal Muhaemien",null,null,null,null,null,null,null,null,null,null,null,null,null,null,null,0,{"$error":"#DIV/0!"},3,null,null,null,null,"Baik"]
[19,"0942","Muhammad Hafizh",null,null,null,null,null,null,null,null,null,null,null,null,null,null,null,0,{"$error":"#DIV/0!"},3,null,null,null,null,"Baik"]
[20,"0930","Muhammad Iqbal Putra",null,null,null,null,null,null,null,null,null,null,null,null,null,null,null,0,{"$error":"#DIV/0!"},3,null,null,null,null,"Baik"]
[21,"0946","Muhammad Ivan Prapanca",null,null,null,null,null,null,null,null,null,null,null,null,null,null,null,0,{"$error":"#DIV/0!"},3,null,null,null,null,"Baik"]
[22,"0948","Muhammad Ridwan",null,null,null,null,null,null,null,null,null,null,null,null,null,null,null,0,{"$error":"#DIV/0!"},3,null,null,null,null,"Baik"]
[23,"0921","Muhammad Rizky Fauzan",null,null,null,null,null,null,null,null,null,null,null,null,null,null,null,0,{"$error":"#DIV/0!"},3,null,null,null,null,"Baik"]
[24,"0952","Nabila Nuraziza",null,null,null,null,null,null,null,null,null,null,null,null,null,null,null,0,{"$error":"#DIV/0!"},3,null,null,null,null,"Baik"]
[25,"0953","Nadhira Renatya Silmi",null,null,null,null,null,null,null,null,null,null,null,null,null,null,null,0,{"$error":"#DIV/0!"},3,null,null,null,null,"Baik"]
[26,"0962","Nurul Faizah",null,null,null,null,null,null,null,null,null,null,null,null,null,null,null,0,{"$error":"#DIV/0!"},3,null,null,null,null,"Baik"]
[27,"0963","Pridya Salsabilah",null,null,null,null,null,null,null,null,null,null,null,null,null,null,null,0,{"$error":"#DIV/0!"},3,null,null,null,null,"Baik"]
[28,"0967","Raihan Widad Ramadhan",null,null,null,null,null,null,null,null,null,null,null,null,null,null,null,0,{"$error":"#DIV/0!"},3,null,null,null,null,"Baik"]
[29,"0968","Ramadhan Fadhillah Akhbar",null,null,null,null,null,null,null,null,null,null,null,null,null,null,null,0,{"$error":"#DIV/0!"},3,null,null,null,null,"Baik"]
[30,1011,"Ricka Yustira",null,null,null,null,null,null,null,null,null,null,null,null,null,null,null,0,{"$error":"#DIV/0!"},3,null,null,null,null,"Baik"]
[31,"0978","Rizky Ade Dharmawan",null,null,null,null,null,null,null,null,null,null,null,null,null,null,null,0,{"$error":"#DIV/0!"},3,null,null,null,null,"Baik"]
[32,"1228","Saka Sona Azy Alamsyah",null,null,null,null,null,null,null,null,null,null,null,null,null,null,null,0,{"$error":"#DIV/0!"},3,null,null,null,null,"Baik"]
[33,"0983","Salsabilla Nur Cahyani",null,null,null,null,null,null,null,null,null,null,null,null,null,null,null,0,{"$error":"#DIV/0!"},3,null,null,null,null,"Baik"]
[34,"0985","Sayra Fachillah",null,null,null,null,null,null,null,null,null,null,null,null,null,null,null,0,{"$error":"#DIV/0!"},3,null,null,null,null,"Baik"]
[35,"0989","Shelvy Nur Ramadzi",null,null,null,null,null,null,null,null,null,null,null,null,null,null,null,0,{"$error":"#DIV/0!"},3,null,null,null,null,"Baik"]
[36,1007,"Zahra Mutiara Sulaiman",null,null,null,null,null,null,null,null,null,null,null,null,null,null,null,0,{"$error":"#DIV/0!"},3,null,null,null,null,"Baik"]
[37,1008,"Zyah Rendri Ichwan",null,null,null,null,null,null,null,null,null,null,null,null,null,null,null,0,{"$error":"#DIV/0!"},3,null,null,null,null,"Baik"]
[38,null,null,null,null,null,null,null,null,null,null,null,null,null,null,null,null,null,0,{"$error":"#DIV/0!"},3,null,null,null,null,"Baik"]
[39,null,null,null,null,null,null,null,null,null,null,null,null,null,null,null,null,null,0,{"$error":"#DIV/0!"},3,null,null,null,null,"Baik"]
[40,null,null,null,null,null,null,null,null,null,null,null,null,null,null,null,null,null,0,{"$error":"#DIV/0!"},3,null,null,null,null,"Baik"]
[41,null,null,null,null,null,null,null,null,null,null,null,null,null,null,null,null,null,0,{"$error":"#DIV/0!"},3,null,null,null,null,"Baik"]
[42,null,null,null,null,null,null,null,null,null,null,null,null,null,null,null,null,null,0,{"$error":"#DIV/0!"},3,null,null,null,null,"Baik"]
[43,null,null,null,null,null,null,null,null,null,null,null,null,null,null,null,null,null,0,{"$error":"#DIV/0!"},3,null,null,null,null,"Baik"]
[44,null,null,null,null,null,null,null,null,null,null,null,null,null,null,null,null,null,0,{"$error":"#DIV/0!"},3,null,null,null,null,"Baik"]
[45,null,null,null,null,null,null,null,null,null,null,null,null,null,null,null,null,null,0,{"$error":"#DIV/0!"},3,null,null,null,null,"Baik"]
[46]

{"sheet":"Guru Bidang Studi","index":2,"n_rows":20,"n_cols":3,"rows_kept":20,"cut":false,"hidden":false,"merged":[]}
[]
[]
["No","Bidang Studi","Guru"]
[1,"Pendidikan Agama","Muhammad Faisal, S.Pd"]
[2,"Pendidikan Kewarganegaraan","Mini Waryati, S.Pd"]
[3,"Bahasa dan Sastra Indonesia","Susjayati, S.Pd"]
[4,"Penjasorkes","Sujadi, S.Pd"]
[5,"Matematika","Dra. Ikeu Ganis Milik"]
[6,"Bahasa Inggris","Ihdina Furnama, M.Pd"]
[7,"Ilmu Pengetahuan Alam","Teuku Abdul Hafidz, S.Pd"]
[8,"Kewirausahaan","Bachtiar Sugianto, S.Pd"]
[9,"Kimia","Yahdiana, S.Si"]
[10,"Fisika","Joko Wahyu Utomo, S.Si"]
[11,"KKPI","Eko Rudi Haryanto, S.Kom"]
[12,"Ilmu Pengetahuan Sosial","Muhammad Adam Fasya, S.Pd"]
[13,"Menguasai dasar animasi op-motion (bidang datar)","Denny Muharjo"]
[14,"Membuat story board aplikasi multimedia","Denny Muharjo"]
[15,"Broadcasting","Cahyo Prasojo, S.Sn"]
[16]
[17]

{"sheet":"Daftar Exkul","index":3,"n_rows":42,"n_cols":6,"rows_kept":42,"cut":false,"hidden":false,"merged":[]}
[]
["No","Nama","Ekskul1","Ekskul2","Ekskul3","Ekskul4"]
[1,{"$f":"Leger!C6","v":"Abdul Rahman"}]
[2,{"$f":"Leger!C7","v":"Ade Saputra"}]
[3,{"$f":"Leger!C8","v":"Aldi Gipran Ardian"}]
[4,{"$f":"Leger!C9","v":"Aldi Sentanu"}]
[5,{"$f":"Leger!C10","v":"Alvin Ramadhan"}]
[6,{"$f":"Leger!C11","v":"Ayu Lestari"}]
[7,{"$f":"Leger!C12","v":"Dian Fadilah Rahmadani"}]
[8,{"$f":"Leger!C13","v":"Elda Aurelia"}]
[9,{"$f":"Leger!C14","v":"Farhan Akbar Eka Putra"}]
[10,{"$f":"Leger!C15","v":"Fikri Ramadhan"}]
[11,{"$f":"Leger!C16","v":"Januar Ginting Ramadhan"}]
[12,{"$f":"Leger!C17","v":"Jihan Syafira Andriyani"}]
[13,{"$f":"Leger!C18","v":"Kautsar Alfaridzi"}]
[14,{"$f":"Leger!C19","v":"Kennedy Hanifan"}]
[15,{"$f":"Leger!C20","v":"Latifia Zahra"}]
[16,{"$f":"Leger!C21","v":"Mohammad Rizki Febriansyah"}]
[17,{"$f":"Leger!C22","v":"Muhammad Afrizal"}]
[18,{"$f":"Leger!C23","v":"Muhammad Faisal Muhaemien"}]
[19,{"$f":"Leger!C24","v":"Muhammad Hafizh"}]
[20,{"$f":"Leger!C25","v":"Muhammad Iqbal Putra"}]
[21,{"$f":"Leger!C26","v":"Muhammad Ivan Prapanca"}]
[22,{"$f":"Leger!C27","v":"Muhammad Ridwan"}]
[23,{"$f":"Leger!C28","v":"Muhammad Rizky Fauzan"}]
[24,{"$f":"Leger!C29","v":"Nabila Nuraziza"}]
[25,{"$f":"Leger!C30","v":"Nadhira Renatya Silmi"}]
[26,{"$f":"Leger!C31","v":"Nurul Faizah"}]
[27,{"$f":"Leger!C32","v":"Pridya Salsabilah"}]
[28,{"$f":"Leger!C33","v":"Raihan Widad Ramadhan"}]
[29,{"$f":"Leger!C34","v":"Ramadhan Fadhillah Akhbar"}]
[30,{"$f":"Leger!C35","v":"Ricka Yustira"}]
[31,{"$f":"Leger!C36","v":"Rizky Ade Dharmawan"}]
[32,{"$f":"Leger!C37","v":"Saka Sona Azy Alamsyah"}]
[33,{"$f":"Leger!C38","v":"Salsabilla Nur Cahyani"}]
[34,{"$f":"Leger!C39","v":"Sayra Fachillah"}]
[35,{"$f":"Leger!C40","v":"Shelvy Nur Ramadzi"}]
[36,{"$f":"Leger!C41","v":"Zahra Mutiara Sulaiman"}]
[37,{"$f":"Leger!C42","v":"Zyah Rendri Ichwan"}]
[38,{"$f":"Leger!C43","v":0}]
[39,{"$f":"Leger!C44","v":0}]
[40,{"$f":"Leger!C45","v":0}]